[Event "*** SCC Grand Prix: Titled Tuesday Blitz"]
[Site "Chess.com"]
[Date "2020.09.08"]
[Round "2"]
[White "barbosean"]
[Black "IroniaSudby"]
[Result "1-0"]
[WhiteElo "2302"]
[BlackElo "2494"]
[TimeControl "180+1"]
[EndTime "10:18:27 PDT"]
[Termination "barbosean won on time"]

1. e4 {[%clk 0:02:58.1]} 1... e5 {[%clk 0:02:59.7]} 2. Nf3 {[%clk 0:02:57.3]}
2... Nf6 {[%clk 0:03:00.1]} 3. Nxe5 {[%clk 0:02:54.3]} 3... d6 {[%clk
0:03:00.5]} 4. Nf3 {[%clk 0:02:50.2]} 4... Nxe4 {[%clk 0:03:00.9]} 5. Qe2 {[%clk
0:02:47.5]} 5... Qe7 {[%clk 0:03:00.8]} 6. d3 {[%clk 0:02:45.7]} 6... Nf6 {[%clk
0:03:01.2]} 7. Bg5 {[%clk 0:02:43.6]} 7... Qxe2+ {[%clk 0:02:58.6]} 8. Bxe2
{[%clk 0:02:44.5]} 8... Be7 {[%clk 0:02:59.3]} 9. Nc3 {[%clk 0:02:43.5]} 9... c6
{[%clk 0:02:59.9]} 10. O-O-O {[%clk 0:02:41.3]} 10... Na6 {[%clk 0:03:00.5]} 11.
Rhe1 {[%clk 0:02:40.3]} 11... Nc7 {[%clk 0:02:59.7]} 12. d4 {[%clk 0:02:40.3]}
12... Bf5 {[%clk 0:02:57]} 13. h3 {[%clk 0:02:39.6]} 13... Ne6 {[%clk
0:02:55.4]} 14. g4 {[%clk 0:02:31.8]} 14... Bg6 {[%clk 0:02:34.8]} 15. Be3
{[%clk 0:02:22.2]} 15... Kd7 {[%clk 0:02:31.7]} 16. d5 {[%clk 0:02:13.6]} 16...
cxd5 {[%clk 0:02:20.3]} 17. Nxd5 {[%clk 0:02:14.5]} 17... Nxd5 {[%clk
0:02:20.6]} 18. Rxd5 {[%clk 0:02:11.7]} 18... Be4 {[%clk 0:02:05.5]} 19. Rd2
{[%clk 0:01:42.2]} 19... h5 {[%clk 0:02:05.1]} 20. g5 {[%clk 0:00:54.6]} 20...
Rac8 {[%clk 0:01:46.9]} 21. h4 {[%clk 0:00:53.1]} 21... a6 {[%clk 0:01:42.9]}
22. Ne5+ {[%clk 0:00:39.2]} 22... Kc7 {[%clk 0:01:35.4]} 23. Nc4 {[%clk
0:00:21.7]} 23... Kb8 {[%clk 0:01:28.1]} 24. Nb6 {[%clk 0:00:20.5]} 24... Rc6
{[%clk 0:01:24.4]} 25. Nd5 {[%clk 0:00:20.3]} 25... Bd8 {[%clk 0:01:10.9]} 26.
f3 {[%clk 0:00:19.7]} 26... Bg6 {[%clk 0:01:00.9]} 27. Bd3 {[%clk 0:00:19.7]}
27... Ba5 {[%clk 0:00:58.6]} 28. c3 {[%clk 0:00:19.4]} 28... Rf8 {[%clk
0:00:43]} 29. f4 {[%clk 0:00:16]} 29... Bxd3 {[%clk 0:00:37.9]} 30. Rxd3 {[%clk
0:00:16.9]} 30... Nc5 {[%clk 0:00:36.6]} 31. Bxc5 {[%clk 0:00:16.4]} 31... dxc5
{[%clk 0:00:37]} 32. f5 {[%clk 0:00:16.2]} 32... c4 {[%clk 0:00:37.2]} 33. Rde3
{[%clk 0:00:15.9]} 33... Rd8 {[%clk 0:00:37.2]} 34. Re8 {[%clk 0:00:15.7]} 34...
Rd6 {[%clk 0:00:34.8]} 35. Nf4 {[%clk 0:00:14]} 35... Bc7 {[%clk 0:00:30]} 36.
Nxh5 {[%clk 0:00:12.9]} 36... Ka7 {[%clk 0:00:29.3]} 37. Nxg7 {[%clk 0:00:12.5]}
37... R8d7 {[%clk 0:00:27.8]} 38. R8e7 {[%clk 0:00:12.2]} 38... Bb6 {[%clk
0:00:21.8]} 39. Rxd7 {[%clk 0:00:11.7]} 39... Rxd7 {[%clk 0:00:22.7]} 40. h5
{[%clk 0:00:11.4]} 40... Bf2 {[%clk 0:00:21.6]} 41. Re2 {[%clk 0:00:10.6]} 41...
Bh4 {[%clk 0:00:21.7]} 42. Rg2 {[%clk 0:00:09.4]} 42... Rd3 {[%clk 0:00:17.5]}
43. h6 {[%clk 0:00:08.7]} 43... Rh3 {[%clk 0:00:13.5]} 44. g6 {[%clk 0:00:08]}
44... fxg6 {[%clk 0:00:12.4]} 45. fxg6 {[%clk 0:00:08.9]} 45... Bg3 {[%clk
0:00:06.6]} 46. Nf5 {[%clk 0:00:09.1]} 46... Bf4+ {[%clk 0:00:06.9]} 47. Kc2
{[%clk 0:00:08.9]} 1-0

[Event "*** SCC Grand Prix: Titled Tuesday Blitz"]
[Site "Chess.com"]
[Date "2020.09.08"]
[Round "2"]
[White "Vuk2000"]
[Black "M1711"]
[Result "1-0"]
[WhiteElo "2722"]
[BlackElo "2487"]
[TimeControl "180+1"]
[EndTime "10:18:28 PDT"]
[Termination "Vuk2000 won on time"]

1. e4 {[%clk 0:02:59.9]} 1... e5 {[%clk 0:02:58]} 2. Nf3 {[%clk 0:02:59.5]} 2...
Nc6 {[%clk 0:02:58.1]} 3. d4 {[%clk 0:02:59.5]} 3... exd4 {[%clk 0:02:57.7]} 4.
Nxd4 {[%clk 0:03:00.4]} 4... Bb4+ {[%clk 0:02:56.9]} 5. c3 {[%clk 0:03:00]} 5...
Bc5 {[%clk 0:02:56.9]} 6. Nf5 {[%clk 0:02:59.8]} 6... g6 {[%clk 0:02:33.6]} 7.
Be3 {[%clk 0:02:59.2]} 7... Bxe3 {[%clk 0:02:30.9]} 8. Nxe3 {[%clk 0:03:00.1]}
8... Nf6 {[%clk 0:02:30.8]} 9. f3 {[%clk 0:02:55]} 9... O-O {[%clk 0:02:30.2]}
10. Bc4 {[%clk 0:02:49]} 10... Qe7 {[%clk 0:02:19.6]} 11. O-O {[%clk 0:02:46.8]}
11... b5 {[%clk 0:02:06]} 12. Bxb5 {[%clk 0:02:28.8]} 12... Qc5 {[%clk 0:02:06]}
13. Qe2 {[%clk 0:02:27.1]} 13... Rb8 {[%clk 0:02:05.5]} 14. Na3 {[%clk
0:02:04.7]} 14... d5 {[%clk 0:01:41.8]} 15. Bxc6 {[%clk 0:01:49.4]} 15... Qxc6
{[%clk 0:01:41.8]} 16. Nxd5 {[%clk 0:01:48.9]} 16... Nxd5 {[%clk 0:01:40.8]} 17.
exd5 {[%clk 0:01:49.8]} 17... Qxd5 {[%clk 0:01:40.4]} 18. Rf2 {[%clk 0:01:33.6]}
18... Bf5 {[%clk 0:01:32.9]} 19. Qc4 {[%clk 0:01:29]} 19... Qd6 {[%clk
0:01:25.7]} 20. Nb5 {[%clk 0:00:41.2]} 20... Qa6 {[%clk 0:01:25.5]} 21. a4
{[%clk 0:00:40.7]} 21... Bd7 {[%clk 0:00:51.5]} 22. Rd1 {[%clk 0:00:38.3]} 22...
Bxb5 {[%clk 0:00:49]} 23. axb5 {[%clk 0:00:37.9]} 23... Rxb5 {[%clk 0:00:37.5]}
24. Qxc7 {[%clk 0:00:36.3]} 24... Qa4 {[%clk 0:00:28.9]} 25. Qd6 {[%clk
0:00:22.7]} 25... Rfb8 {[%clk 0:00:24.6]} 26. Rdd2 {[%clk 0:00:19.7]} 26... Rxb2
{[%clk 0:00:19.9]} 27. Rxb2 {[%clk 0:00:13.8]} 27... Qa1+ {[%clk 0:00:20.1]} 28.
Rf1 {[%clk 0:00:13.9]} 28... Qxb2 {[%clk 0:00:20.7]} 29. c4 {[%clk 0:00:14.2]}
29... Rc8 {[%clk 0:00:16.8]} 30. Qd5 {[%clk 0:00:07.3]} 30... Qc3 {[%clk
0:00:15.4]} 31. Qb7 {[%clk 0:00:05]} 31... Qd4+ {[%clk 0:00:12]} 32. Kh1 {[%clk
0:00:05.1]} 32... Rxc4 {[%clk 0:00:10.2]} 33. h3 {[%clk 0:00:05.5]} 33... Rc2
{[%clk 0:00:09.2]} 34. Qb8+ {[%clk 0:00:05.6]} 34... Kg7 {[%clk 0:00:08.6]} 35.
Re1 {[%clk 0:00:04.9]} 35... a5 {[%clk 0:00:04.4]} 36. Qb3 {[%clk 0:00:03.3]}
36... Rc3 {[%clk 0:00:03.2]} 37. Qb2 {[%clk 0:00:02.9]} 37... a4 {[%clk
0:00:02.3]} 38. Ra1 {[%clk 0:00:03]} 38... Rd3 {[%clk 0:00:02.3]} 39. Qa2 {[%clk
0:00:03.1]} 1-0

[Event "*** SCC Grand Prix: Titled Tuesday Blitz"]
[Site "Chess.com"]
[Date "2020.09.08"]
[Round "2"]
[White "ArjunErigaisi2003"]
[Black "chessplayer9919"]
[Result "1-0"]
[WhiteElo "3056"]
[BlackElo "2602"]
[TimeControl "180+1"]
[EndTime "10:18:31 PDT"]
[Termination "ArjunErigaisi2003 won by checkmate"]

1. e4 {[%clk 0:03:00.9]} 1... e5 {[%clk 0:02:55.1]} 2. Nf3 {[%clk 0:03:00.3]}
2... Nc6 {[%clk 0:02:55]} 3. Bb5 {[%clk 0:03:00.9]} 3... Nf6 {[%clk 0:02:54.8]}
4. d3 {[%clk 0:03:00.2]} 4... Bc5 {[%clk 0:02:54.8]} 5. c3 {[%clk 0:02:59]} 5...
d6 {[%clk 0:02:49]} 6. O-O {[%clk 0:02:27.6]} 6... O-O {[%clk 0:02:48.3]} 7.
Nbd2 {[%clk 0:02:25.4]} 7... Bd7 {[%clk 0:02:21.5]} 8. b4 {[%clk 0:02:11.2]}
8... Bb6 {[%clk 0:02:20.1]} 9. Nc4 {[%clk 0:02:11.4]} 9... Ne7 {[%clk
0:02:13.8]} 10. Nxb6 {[%clk 0:02:09.4]} 10... axb6 {[%clk 0:02:03.3]} 11. Bc4
{[%clk 0:02:07.7]} 11... Ba4 {[%clk 0:01:58.3]} 12. Bb3 {[%clk 0:02:03.1]} 12...
Bxb3 {[%clk 0:01:57.7]} 13. Qxb3 {[%clk 0:02:04]} 13... b5 {[%clk 0:01:55.1]}
14. Bg5 {[%clk 0:02:01.2]} 14... Ng6 {[%clk 0:01:44.7]} 15. Nh4 {[%clk
0:01:59.1]} 15... Nxh4 {[%clk 0:01:31.6]} 16. Bxh4 {[%clk 0:02:00]} 16... h6
{[%clk 0:01:20.7]} 17. a4 {[%clk 0:01:21.5]} 17... bxa4 {[%clk 0:01:04.7]} 18.
Rxa4 {[%clk 0:01:22.4]} 18... Rxa4 {[%clk 0:00:58.3]} 19. Qxa4 {[%clk
0:01:23.3]} 19... Qa8 {[%clk 0:00:58.4]} 20. Qd1 {[%clk 0:01:12.2]} 20... Nh7
{[%clk 0:00:45.1]} 21. f4 {[%clk 0:00:57.2]} 21... exf4 {[%clk 0:00:35.8]} 22.
Rxf4 {[%clk 0:00:58.1]} 22... g5 {[%clk 0:00:32.8]} 23. Rg4 {[%clk 0:00:57.7]}
23... Nf6 {[%clk 0:00:21.7]} 24. Rg3 {[%clk 0:00:48.3]} 24... Qa7+ {[%clk
0:00:21.9]} 25. Kh1 {[%clk 0:00:47.9]} 25... Nh5 {[%clk 0:00:19.1]} 26. Rg4
{[%clk 0:00:38.6]} 26... Nf6 {[%clk 0:00:19.3]} 27. Rg3 {[%clk 0:00:29.4]} 27...
Nh5 {[%clk 0:00:19.7]} 28. Rh3 {[%clk 0:00:23.8]} 28... gxh4 {[%clk 0:00:18.7]}
29. Rxh4 {[%clk 0:00:24.7]} 29... Ng7 {[%clk 0:00:15.9]} 30. h3 {[%clk
0:00:24.7]} 30... Qe3 {[%clk 0:00:14.7]} 31. Rg4 {[%clk 0:00:20.6]} 31... Ra8
{[%clk 0:00:13.1]} 32. Kh2 {[%clk 0:00:19.2]} 32... Ra2 {[%clk 0:00:12.4]} 33.
Qf1 {[%clk 0:00:18.5]} 33... Rf2 {[%clk 0:00:09.1]} 34. Qa1 {[%clk 0:00:18.4]}
34... h5 {[%clk 0:00:08.7]} 35. Rg3 {[%clk 0:00:11.5]} 35... Qf4 {[%clk
0:00:08.7]} 36. h4 {[%clk 0:00:10.6]} 36... Qxh4+ {[%clk 0:00:06.3]} 37. Rh3
{[%clk 0:00:11.1]} 37... Qf4+ {[%clk 0:00:04.4]} 38. Kg1 {[%clk 0:00:11.6]}
38... Rd2 {[%clk 0:00:03.5]} 39. Rf3 {[%clk 0:00:10.5]} 39... Qg4 {[%clk
0:00:02.5]} 40. Qf1 {[%clk 0:00:11]} 40... f5 {[%clk 0:00:02.4]} 41. exf5 {[%clk
0:00:10.5]} 41... Nxf5 {[%clk 0:00:03.3]} 42. Rxf5 {[%clk 0:00:11.4]} 42... h4
{[%clk 0:00:02.1]} 43. Rf8+ {[%clk 0:00:11]} 43... Kg7 {[%clk 0:00:02.2]} 44.
Qf6+ {[%clk 0:00:11.2]} 44... Kh7 {[%clk 0:00:02.2]} 45. Rh8# {[%clk 0:00:12.1]}
1-0

[Event "*** SCC Grand Prix: Titled Tuesday Blitz"]
[Site "Chess.com"]
[Date "2020.09.08"]
[Round "2"]
[White "sofaceindisguise"]
[Black "AlexandraBotez"]
[Result "0-1"]
[WhiteElo "2607"]
[BlackElo "2238"]
[TimeControl "180+1"]
[EndTime "10:18:32 PDT"]
[Termination "AlexandraBotez won by checkmate"]

1. d4 {[%clk 0:03:00.9]} 1... Nf6 {[%clk 0:02:59.8]} 2. c4 {[%clk 0:03:00.4]}
2... g6 {[%clk 0:03:00.2]} 3. Nf3 {[%clk 0:03:00.3]} 3... Bg7 {[%clk 0:02:59.7]}
4. Nc3 {[%clk 0:03:00.8]} 4... d6 {[%clk 0:03:00.4]} 5. e4 {[%clk 0:03:00.5]}
5... O-O {[%clk 0:03:01.1]} 6. Be2 {[%clk 0:03:00.9]} 6... Nbd7 {[%clk
0:02:56.7]} 7. O-O {[%clk 0:03:01]} 7... e5 {[%clk 0:02:57]} 8. Bg5 {[%clk
0:02:57]} 8... exd4 {[%clk 0:02:53.6]} 9. Nxd4 {[%clk 0:02:56]} 9... a5 {[%clk
0:02:53.8]} 10. Re1 {[%clk 0:02:55.6]} 10... Nc5 {[%clk 0:02:53.9]} 11. Bf1
{[%clk 0:02:55.2]} 11... Be6 {[%clk 0:02:44.8]} 12. Qf3 {[%clk 0:02:53.8]} 12...
h6 {[%clk 0:02:37.7]} 13. Bh4 {[%clk 0:02:53.6]} 13... g5 {[%clk 0:02:37.8]} 14.
Bg3 {[%clk 0:02:52.3]} 14... Bg4 {[%clk 0:02:33.7]} 15. Qe3 {[%clk 0:02:49.1]}
15... Re8 {[%clk 0:02:26.2]} 16. f3 {[%clk 0:02:48.7]} 16... Bd7 {[%clk
0:02:16.8]} 17. Rad1 {[%clk 0:02:44.5]} 17... Ne6 {[%clk 0:02:05.7]} 18. Nf5
{[%clk 0:02:41.9]} 18... Nf8 {[%clk 0:01:58.7]} 19. Nxg7 {[%clk 0:02:41.4]}
19... Kxg7 {[%clk 0:01:59.6]} 20. c5 {[%clk 0:02:41.5]} 20... dxc5 {[%clk
0:01:48.2]} 21. Qxc5 {[%clk 0:02:40.6]} 21... Ne6 {[%clk 0:01:44.8]} 22. Qf2
{[%clk 0:02:29.8]} 22... c6 {[%clk 0:01:38]} 23. Be5 {[%clk 0:02:26.8]} 23...
Qe7 {[%clk 0:01:18.5]} 24. Na4 {[%clk 0:02:15.8]} 24... Rad8 {[%clk 0:01:14.8]}
25. b3 {[%clk 0:02:15.2]} 25... Bc8 {[%clk 0:01:14.1]} 26. Qb2 {[%clk
0:02:14.6]} 26... Kg6 {[%clk 0:01:10.8]} 27. Nb6 {[%clk 0:02:12.8]} 27... Qc5+
{[%clk 0:01:04.6]} 28. Kh1 {[%clk 0:02:10.4]} 28... Nxe4 {[%clk 0:00:58.1]} 29.
fxe4 {[%clk 0:01:54.1]} 29... Qxb6 {[%clk 0:00:56.9]} 30. Bf6 {[%clk 0:01:51.4]}
30... Rd7 {[%clk 0:00:46]} 31. Rxd7 {[%clk 0:01:49.2]} 31... Bxd7 {[%clk
0:00:46.9]} 32. e5 {[%clk 0:01:50.1]} 32... Nf4 {[%clk 0:00:43.8]} 33. g3 {[%clk
0:01:44.4]} 33... Nd5 {[%clk 0:00:27.9]} 34. Bd3+ {[%clk 0:01:42.8]} 34... Bf5
{[%clk 0:00:28.1]} 35. Bxf5+ {[%clk 0:01:42.7]} 35... Kxf5 {[%clk 0:00:29]} 36.
Qc2+ {[%clk 0:01:41.8]} 36... Ke6 {[%clk 0:00:27]} 37. Rf1 {[%clk 0:01:40.4]}
37... Ne3 {[%clk 0:00:27.4]} 38. Qd3 {[%clk 0:01:33.7]} 38... Nxf1 {[%clk
0:00:27.3]} 39. Qd6+ {[%clk 0:01:31.8]} 39... Kf5 {[%clk 0:00:25.1]} 40. Qd7+
{[%clk 0:01:30.7]} 40... Ke4 {[%clk 0:00:20.9]} 41. Qg4+ {[%clk 0:01:14.4]}
41... Kd3 {[%clk 0:00:16.3]} 42. Qc4+ {[%clk 0:01:14.4]} 42... Kd2 {[%clk
0:00:12.3]} 43. Qxf1 {[%clk 0:01:14.9]} 43... Qe3 {[%clk 0:00:12.2]} 44. Qc4
{[%clk 0:01:09.2]} 44... Qe1+ {[%clk 0:00:11.8]} 45. Kg2 {[%clk 0:01:09.6]}
45... Qe2+ {[%clk 0:00:12.7]} 46. Qxe2+ {[%clk 0:01:08.6]} 46... Kxe2 {[%clk
0:00:13.6]} 47. Kh3 {[%clk 0:01:09.5]} 47... h5 {[%clk 0:00:13.4]} 48. g4 {[%clk
0:01:08.5]} 48... h4 {[%clk 0:00:13.4]} 49. Bxg5 {[%clk 0:01:08.9]} 49... Rxe5
{[%clk 0:00:13.6]} 50. Bxh4 {[%clk 0:01:09.8]} 50... Re3+ {[%clk 0:00:13.6]} 51.
Bg3 {[%clk 0:01:08]} 51... Kf3 {[%clk 0:00:13]} 52. Kh4 {[%clk 0:01:07.8]} 52...
f6 {[%clk 0:00:11.5]} 53. Kh5 {[%clk 0:01:07.6]} 53... Re4 {[%clk 0:00:11.4]}
54. g5 {[%clk 0:01:06]} 54... fxg5 {[%clk 0:00:11.3]} 55. Kxg5 {[%clk
0:01:06.6]} 55... b5 {[%clk 0:00:10.5]} 56. Bc7 {[%clk 0:01:06.4]} 56... a4
{[%clk 0:00:10.3]} 57. Bd6 {[%clk 0:01:06.3]} 57... axb3 {[%clk 0:00:10.1]} 58.
axb3 {[%clk 0:01:07.2]} 58... Re2 {[%clk 0:00:09.7]} 59. h4 {[%clk 0:01:05.8]}
59... Re6 {[%clk 0:00:09.9]} 60. Bf4 {[%clk 0:01:04.1]} 60... Re4 {[%clk
0:00:08.4]} 61. Bd6 {[%clk 0:01:03.5]} 61... Rg4+ {[%clk 0:00:09.1]} 62. Kh5
{[%clk 0:01:03.1]} 62... b4 {[%clk 0:00:09]} 63. Be7 {[%clk 0:01:01.7]} 63...
Kf4 {[%clk 0:00:07.6]} 64. Kh6 {[%clk 0:01:01.5]} 64... Kf5 {[%clk 0:00:08.2]}
65. h5 {[%clk 0:01:01.7]} 65... Ke6 {[%clk 0:00:07]} 66. Bg5 {[%clk 0:01:01.1]}
66... Kf7 {[%clk 0:00:06.4]} 67. Be3 {[%clk 0:01:00]} 67... Kg8 {[%clk
0:00:05.7]} 68. Bc5 {[%clk 0:00:59.6]} 68... Kf7 {[%clk 0:00:03.7]} 69. Kh7
{[%clk 0:00:58]} 69... Rg5 {[%clk 0:00:04.1]} 70. Bxb4 {[%clk 0:00:57.8]} 70...
Rxh5# {[%clk 0:00:04.5]} 0-1

[Event "*** SCC Grand Prix: Titled Tuesday Blitz"]
[Site "Chess.com"]
[Date "2020.09.08"]
[Round "2"]
[White "baki83"]
[Black "ClydeHillKid"]
[Result "0-1"]
[WhiteElo "2742"]
[BlackElo "2352"]
[TimeControl "180+1"]
[EndTime "10:18:32 PDT"]
[Termination "ClydeHillKid won by resignation"]

1. e4 {[%clk 0:02:57]} 1... e6 {[%clk 0:03:00.1]} 2. d4 {[%clk 0:02:56.7]} 2...
d5 {[%clk 0:03:00.3]} 3. exd5 {[%clk 0:02:57.6]} 3... exd5 {[%clk 0:03:01.1]} 4.
Nf3 {[%clk 0:02:57.2]} 4... Nf6 {[%clk 0:03:01.1]} 5. Bd3 {[%clk 0:02:56.5]}
5... Bd6 {[%clk 0:03:00.9]} 6. Qe2+ {[%clk 0:02:56.5]} 6... Qe7 {[%clk
0:03:00.2]} 7. Qxe7+ {[%clk 0:02:57]} 7... Kxe7 {[%clk 0:03:01.1]} 8. Nc3 {[%clk
0:02:55.3]} 8... c6 {[%clk 0:02:58.1]} 9. O-O {[%clk 0:02:54.2]} 9... Re8 {[%clk
0:02:54.9]} 10. Bg5 {[%clk 0:02:53.5]} 10... Be6 {[%clk 0:02:52.2]} 11. Ne5
{[%clk 0:02:52.2]} 11... h6 {[%clk 0:02:49.7]} 12. Bh4 {[%clk 0:02:48.8]} 12...
g5 {[%clk 0:02:46.6]} 13. Bg3 {[%clk 0:02:48.6]} 13... Nbd7 {[%clk 0:02:46.2]}
14. Rae1 {[%clk 0:02:45.1]} 14... Nh5 {[%clk 0:02:37.3]} 15. f4 {[%clk
0:02:41.1]} 15... Nxg3 {[%clk 0:02:36.8]} 16. hxg3 {[%clk 0:02:40.3]} 16... f6
{[%clk 0:02:25.5]} 17. Nxc6+ {[%clk 0:02:09.3]} 17... bxc6 {[%clk 0:02:23.1]}
18. f5 {[%clk 0:02:07.5]} 18... Nf8 {[%clk 0:00:58.1]} 19. fxe6 {[%clk 0:01:48]}
19... Bxg3 {[%clk 0:00:57.6]} 20. Re3 {[%clk 0:01:35.5]} 20... Bf4 {[%clk
0:00:57]} 21. Re2 {[%clk 0:01:35.8]} 21... Nxe6 {[%clk 0:00:39.4]} 22. Bg6
{[%clk 0:01:32.5]} 22... Kd7 {[%clk 0:00:26.2]} 23. Na4 {[%clk 0:01:12.1]} 23...
Nxd4 {[%clk 0:00:16.8]} 24. Bxe8+ {[%clk 0:01:09.4]} 24... Rxe8 {[%clk
0:00:17.7]} 25. Nc5+ {[%clk 0:01:07.9]} 25... Kd8 {[%clk 0:00:16.1]} 26. Nb7+
{[%clk 0:01:04.2]} 26... Kd7 {[%clk 0:00:16.1]} 27. Rxe8 {[%clk 0:01:04]} 27...
Kxe8 {[%clk 0:00:15.8]} 28. c3 {[%clk 0:01:03]} 28... Ne6 {[%clk 0:00:10]} 29.
g3 {[%clk 0:00:58.6]} 29... Be5 {[%clk 0:00:08.9]} 30. Kg2 {[%clk 0:00:54.6]}
30... Kd7 {[%clk 0:00:08.4]} 31. Rh1 {[%clk 0:00:53.8]} 31... Kc7 {[%clk
0:00:05.2]} 32. Na5 {[%clk 0:00:53.3]} 32... Kb6 {[%clk 0:00:05.7]} 33. Nb3
{[%clk 0:00:53.5]} 33... Nc5 {[%clk 0:00:04.3]} 34. Nxc5 {[%clk 0:00:51.8]}
34... Kxc5 {[%clk 0:00:05.2]} 35. Rxh6 {[%clk 0:00:51.3]} 35... a5 {[%clk
0:00:05.7]} 36. Kf3 {[%clk 0:00:49.3]} 36... a4 {[%clk 0:00:04.2]} 37. g4 {[%clk
0:00:48.8]} 37... a3 {[%clk 0:00:03.7]} 38. bxa3 {[%clk 0:00:48.2]} 38... Bxc3
{[%clk 0:00:04.1]} 39. Ke3 {[%clk 0:00:48.1]} 39... Be5 {[%clk 0:00:04]} 40. Kd3
{[%clk 0:00:48]} 40... Kb5 {[%clk 0:00:04.5]} 41. Rh8 {[%clk 0:00:47.1]} 41...
c5 {[%clk 0:00:03.6]} 42. a4+ {[%clk 0:00:39.9]} 42... Kxa4 {[%clk 0:00:03.2]}
43. Rd8 {[%clk 0:00:38.5]} 43... c4+ {[%clk 0:00:02.8]} 44. Kc2 {[%clk
0:00:35.6]} 44... d4 {[%clk 0:00:03.4]} 45. Ra8+ {[%clk 0:00:34.1]} 45... Kb5
{[%clk 0:00:03.4]} 46. Rc8 {[%clk 0:00:30.9]} 46... d3+ {[%clk 0:00:03.3]} 47.
Kd2 {[%clk 0:00:31.2]} 47... Kb4 {[%clk 0:00:03.8]} 48. Ke3 {[%clk 0:00:30.5]}
48... Bf4+ {[%clk 0:00:01.9]} 49. Ke4 {[%clk 0:00:30.3]} 49... d2 {[%clk
0:00:02.5]} 50. Rd8 {[%clk 0:00:28.9]} 50... c3 {[%clk 0:00:03.1]} 51. Kf3
{[%clk 0:00:27.7]} 51... c2 {[%clk 0:00:03.4]} 52. Rd4+ {[%clk 0:00:23.2]} 52...
Ka3 {[%clk 0:00:03.2]} 53. Rxd2 {[%clk 0:00:24.1]} 53... Bxd2 {[%clk 0:00:03]}
54. Ke4 {[%clk 0:00:24.5]} 54... c1=Q {[%clk 0:00:03.9]} 55. Kd3 {[%clk
0:00:25.2]} 55... Kxa2 {[%clk 0:00:04.8]} 0-1

[Event "*** SCC Grand Prix: Titled Tuesday Blitz"]
[Site "Chess.com"]
[Date "2020.09.08"]
[Round "2"]
[White "paulrusan"]
[Black "WPWPWP-2015"]
[Result "1-0"]
[WhiteElo "2267"]
[BlackElo "2451"]
[TimeControl "180+1"]
[EndTime "10:18:32 PDT"]
[Termination "paulrusan won on time"]

1. e4 {[%clk 0:03:00.9]} 1... c5 {[%clk 0:02:59.1]} 2. b4 {[%clk 0:03:00.4]}
2... Nc6 {[%clk 0:02:54.8]} 3. bxc5 {[%clk 0:02:59.8]} 3... e5 {[%clk
0:02:53.8]} 4. Nf3 {[%clk 0:02:57.8]} 4... Bxc5 {[%clk 0:02:52.7]} 5. Bc4 {[%clk
0:02:57.9]} 5... Nf6 {[%clk 0:02:49.4]} 6. d3 {[%clk 0:02:55.5]} 6... O-O {[%clk
0:02:47.6]} 7. O-O {[%clk 0:02:55]} 7... d5 {[%clk 0:02:29.8]} 8. exd5 {[%clk
0:02:53.2]} 8... Nxd5 {[%clk 0:02:29.3]} 9. h3 {[%clk 0:02:42.9]} 9... h6 {[%clk
0:02:26.2]} 10. Re1 {[%clk 0:02:40.7]} 10... Re8 {[%clk 0:02:25.3]} 11. Bd2
{[%clk 0:02:37.5]} 11... Kh8 {[%clk 0:02:14.5]} 12. Nc3 {[%clk 0:02:36.7]} 12...
Nb6 {[%clk 0:02:09]} 13. Bxf7 {[%clk 0:02:33.2]} 13... Rf8 {[%clk 0:01:55.3]}
14. Bb3 {[%clk 0:02:32.8]} 14... Nd4 {[%clk 0:01:47.6]} 15. Nxd4 {[%clk
0:02:32]} 15... Bxd4 {[%clk 0:01:47.2]} 16. Ne4 {[%clk 0:02:21.9]} 16... Bxa1
{[%clk 0:01:42.7]} 17. Qxa1 {[%clk 0:02:21.9]} 17... Bf5 {[%clk 0:01:17.5]} 18.
Qxe5 {[%clk 0:02:18.8]} 18... Bxe4 {[%clk 0:01:14.4]} 19. Rxe4 {[%clk
0:02:09.2]} 19... Re8 {[%clk 0:01:11.9]} 20. Qxe8+ {[%clk 0:01:57.8]} 20... Qxe8
{[%clk 0:01:11.5]} 21. Rxe8+ {[%clk 0:01:57.8]} 21... Rxe8 {[%clk 0:01:12.3]}
22. Kf1 {[%clk 0:01:57.3]} 22... Kh7 {[%clk 0:01:09.8]} 23. f4 {[%clk
0:01:52.3]} 23... Nd7 {[%clk 0:01:05.9]} 24. Kf2 {[%clk 0:01:42.9]} 24... Nc5
{[%clk 0:01:02.5]} 25. Bc4 {[%clk 0:01:38.9]} 25... a6 {[%clk 0:01:02.1]} 26.
Be3 {[%clk 0:01:29.1]} 26... Nd7 {[%clk 0:01:00.3]} 27. a4 {[%clk 0:01:24.6]}
27... Rc8 {[%clk 0:00:48]} 28. Kf3 {[%clk 0:01:20.9]} 28... Nf6 {[%clk
0:00:45.1]} 29. g4 {[%clk 0:01:15.4]} 29... Ne8 {[%clk 0:00:29.3]} 30. a5 {[%clk
0:01:01.7]} 30... Nd6 {[%clk 0:00:28.2]} 31. Bb3 {[%clk 0:01:01.6]} 31... Kg6
{[%clk 0:00:27.5]} 32. h4 {[%clk 0:00:57]} 32... Kf6 {[%clk 0:00:25.2]} 33. Bd4+
{[%clk 0:00:54.1]} 33... Kg6 {[%clk 0:00:24.1]} 34. h5+ {[%clk 0:00:54.4]} 34...
Kh7 {[%clk 0:00:23.9]} 35. Be5 {[%clk 0:00:52.6]} 35... Ne8 {[%clk 0:00:21.2]}
36. d4 {[%clk 0:00:41.8]} 36... Nf6 {[%clk 0:00:17.8]} 37. c4 {[%clk 0:00:38.4]}
37... Kg8 {[%clk 0:00:13.2]} 38. c5+ {[%clk 0:00:37.7]} 38... Kf8 {[%clk
0:00:13]} 39. d5 {[%clk 0:00:33.9]} 39... Ke8 {[%clk 0:00:10.4]} 40. Bd6 {[%clk
0:00:27.7]} 40... Nd7 {[%clk 0:00:08.8]} 41. Ba4 {[%clk 0:00:27.6]} 41... Kd8
{[%clk 0:00:08.8]} 42. c6 {[%clk 0:00:27.3]} 42... bxc6 {[%clk 0:00:07.9]} 43.
dxc6 {[%clk 0:00:26.1]} 43... Nf6 {[%clk 0:00:07.5]} 44. Be5 {[%clk 0:00:20.5]}
44... Ne8 {[%clk 0:00:07]} 45. Ke4 {[%clk 0:00:19.8]} 45... Ke7 {[%clk
0:00:06.8]} 46. Kf5 {[%clk 0:00:20]} 46... Kf7 {[%clk 0:00:02.3]} 47. Bb3+
{[%clk 0:00:19.5]} 47... Ke7 {[%clk 0:00:02.1]} 48. Bd5 {[%clk 0:00:18.8]} 48...
Rd8 {[%clk 0:00:02.1]} 49. Be4 {[%clk 0:00:17.6]} 49... Nd6+ {[%clk 0:00:01.8]}
50. Bxd6+ {[%clk 0:00:16.7]} 1-0